bitfinex-derivatives/quotes_ETHF0:USTF0_20250702
["timestamp","ask_amount","ask_price","bid_price","bid_amount"]
[1751473688858,0.78851,2535.3,2535.2,6.00904822]
[1751473689053,0.78851,2535.3,2535.2,3.02304822]
[1751473689257,55.4673977,2535.8,2535.1,3.02304822]
[1751473689258,13.203,2535.5,2535.1,3.02304822]
[1751473689763,55.56,2535.6,2535.3,0.7885]
[1751473689957,0.78855,2535.2,2535.1,3.02304822]
[1751473690155,0.78858,2535.1,2535.0,3.02304822]
[1751473690357,5.9871,2535.5,2534.8,3.02304822]
[1751473690555,55.558,2535.3,2535.1,0.78857]
[1751473690761,13.203,2535.4,2535.2,2.986]
[1751473691055,13.206,2536.7,2536.2,0.78823]
[1751473691363,1.79436934,2536.6,2535.9,1.97083]
[1751473691665,13.206,2536.7,2536.2,1.97059]
[1751473691858,42.351,2536.8,2536.7,0.78808]
[1751473692269,13.206,2536.9,2536.8,0.78805]
[1751473692463,1.00595687,2536.9,2536.8,0.78805]
[1751473692665,112.319,2537.1,2536.4,4.94461]
[1751473692961,112.319,2537.1,2536.9,0.78801]
[1751473693158,112.319,2537.1,2536.8,0.78802]
[1751473693460,113.10697,2537.1,2536.7,0.78806]
[1751473693658,1.96999,2537.0,2535.7,3.1473]
[1751473693863,8.0414477,2536.3,2535.8,0.78833]
[1751473694064,13.206,2536.2,2535.6,11.1770477]
[1751473694357,0.78827,2536.1,2535.7,0.78837]
[1751473694666,42.334,2536.2,2535.8,2.9185]
[1751473694854,0.78828,2536.1,2535.8,2.9185]
[1751473695563,0.78829,2536.1,2535.8,2.9185]
[1751473695867,42.334,2536.2,2535.8,2.9185]
[1751473696163,0.78806,2536.8,2535.9,1.97082]
[1751473696467,13.993,2537.0,2536.6,0.7881]
[1751473696862,0.78802,2536.9,2536.7,2.9185]
[1751473697166,0.78805,2536.8,2536.7,2.9185]
[1751473697357,1.97008,2536.9,2536.1,0.78826]
[1751473697562,1.97008,2536.9,2536.2,0.78823]
[1751473697563,0.78816,2536.5,2536.2,0.78823]
[1751473697860,0.78817,2536.4,2536.0,3.54778]
[1751473698159,42.309,2536.6,2535.6,2.8669]
[1751473698360,0.78831,2536.0,2535.7,0.78838]
[1751473698662,13.205,2536.3,2535.6,5.6264]
[1751473698865,13.205,2536.3,2535.7,0.78837]
[1751473699065,0.7883,2536.0,2535.8,2.7595]
[1751473699266,0.78828,2536.1,2535.8,3.54785]
[1751473699466,0.7883,2536.0,2535.8,2.7595]
[1751473699666,0.78828,2536.1,2535.8,3.54786]
[1751473700467,0.7883,2536.0,2535.8,2.7595]
[1751473701162,13.205,2536.3,2535.8,3.54783]
[1751473701367,13.205,2536.3,2535.8,2.7595]
[1751473701567,0.78828,2536.1,2535.8,3.54785]
[1751473701768,0.7883,2536.0,2535.8,2.7595]
[1751473701967,0.78833,2535.9,2535.8,2.7595]
[1751473702168,0.78832,2536.0,2535.8,2.7595]
[1751473702764,2.9719,2536.4,2535.9,8.0414477]
[1751473702963,0.78822,2536.3,2536.0,2.9337]
[1751473703267,13.206,2536.8,2536.1,1.97067]
[1751473703461,0.78814,2536.6,2536.3,0.78817]
[1751473703660,0.78814,2536.6,2536.4,3.81077]
[1751473703859,0.78811,2536.6,2536.4,3.0226]
[1751473704065,0.7881,2536.7,2536.4,3.81076]
[1751473704469,13.206,2536.8,2536.4,3.0226]
[1751473704869,15.17619,2536.8,2536.1,3.0871]
[1751473705069,0.78818,2536.4,2536.1,3.87535]
[1751473705462,0.78809,2536.7,2536.4,0.78815]
[1751473705873,0.78809,2536.7,2536.5,3.0226]
[1751473706067,13.99406,2536.8,2536.5,3.0226]
[1751473706273,13.206,2536.8,2536.5,3.0226]
[1751473706472,0.78811,2536.6,2536.5,3.0226]
[1751473706673,15.17615,2536.8,2536.2,0.78823]
[1751473706867,0.78812,2536.6,2536.3,0.7882]
[1751473707075,0.78816,2536.5,2536.2,3.57661]
[1751473707271,0.78813,2536.6,2536.3,3.5766]
[1751473707574,13.99408,2536.8,2536.3,2.7884]
[1751473707769,0.7881,2536.7,2536.4,0.78817]
[1751473707969,0.78811,2536.6,2536.5,2.7884]
[1751473708166,15.17614,2536.8,2536.2,0.78822]
[1751473708370,0.78818,2536.4,2536.2,3.57662]
[1751473708571,5.91067,2536.7,2535.6,10.9083477]
[1751473708768,1.97121,2535.5,2534.3,1.97205]
[1751473708971,1.97137,2535.2,2534.4,5.6042]
[1751473709171,8.0414477,2535.4,2534.4,5.6042]
[1751473709370,0.78872,2534.7,2534.4,5.6042]
[1751473709573,1.97148,2535.1,2534.4,5.6042]
[1751473709774,0.78868,2534.8,2534.4,6.39297]
[1751473710073,1.97145,2535.1,2534.4,5.6042]
[1751473710274,0.78875,2534.6,2534.4,2.7884]
[1751473711277,0.78874,2534.6,2534.4,2.7884]
[1751473711776,42.216,2535.0,2534.4,2.7884]
[1751473711972,42.213,2535.1,2534.4,2.7884]
[1751473712172,0.78867,2534.8,2534.5,0.78874]
[1751473712382,8.0414477,2535.4,2534.6,2.7985]
[1751473712582,55.407,2535.3,2534.6,3.58721]
[1751473712881,13.99652,2535.3,2534.9,0.78862]
[1751473713083,55.413,2535.3,2535.0,2.8429]
[1751473713289,55.413,2535.3,2534.7,3.67269]
[1751473713581,0.78869,2534.8,2534.4,0.78878]
[1751473713877,2.8845,2535.2,2534.2,2.8429]
[1751473714080,0.78866,2534.9,2534.5,0.78876]
[1751473714580,0.78866,2534.9,2534.6,2.8429]
[1751473715184,2.8845,2535.2,2534.6,2.8429]
[1751473715381,0.78859,2535.1,2534.8,0.78867]
[1751473715580,0.78861,2535.0,2534.9,2.8429]
[1751473715985,42.188,2535.1,2534.9,2.8429]
[1751473716183,42.9766,2535.1,2534.9,2.8429]
[1751473716480,2.7894,2535.5,2534.9,2.8429]
[1751473716685,1.97129,2535.3,2534.9,2.8429]
[1751473716882,0.78866,2534.9,2534.5,0.78874]
[1751473717091,0.78866,2534.9,2534.6,3.0531]
[1751473717389,0.78858,2535.1,2534.7,0.7887]
[1751473717589,0.78861,2535.0,2534.8,3.0531]
[1751473717780,0.78859,2535.1,2534.8,3.84177]
[1751473717985,42.175,2535.2,2534.8,3.0531]
[1751473718185,0.78858,2535.1,2534.8,3.84176]
[1751473718385,0.78861,2535.0,2534.8,3.0531]
[1751473718583,42.175,2535.2,2534.8,3.0531]
[1751473718787,42.168,2535.2,2534.9,0.78862]
[1751473718987,42.95655,2535.2,2535.0,3.0052]
[1751473719490,42.168,2535.2,2535.0,3.0052]
[1751473719887,42.95654,2535.2,2535.0,3.0052]
[1751473720289,0.78858,2535.1,2535.0,3.0052]
[1751473720484,42.95656,2535.2,2535.0,3.0052]
[1751473720790,42.168,2535.2,2535.0,3.0052]
[1751473721091,42.168,2535.2,2535.0,3.7938]
[1751473721286,42.16,2535.4,2535.0,3.0052]
[1751473721492,42.16,2535.4,2535.1,0.78857]
[1751473721689,0.78853,2535.3,2535.0,3.7938]
[1751473721884,3.0248,2535.6,2535.3,0.78851]
[1751473722084,13.14,2535.6,2535.2,0.78854]
[1751473722287,13.14,2535.6,2535.3,2.7945]
[1751473722592,13.14,2535.6,2535.4,0.78847]
[1751473722788,13.92842,2535.6,2535.5,2.7945]
[1751473723497,0.78847,2535.5,2535.2,0.78853]
[1751473723791,42.127,2535.6,2535.5,0.78845]
[1751473723991,42.126,2535.7,2535.6,0.78841]
[1751473724292,0.78835,2535.9,2535.6,0.78841]
[1751473724493,3.91400784,2537.0,2536.6,0.78811]
[1751473724695,5.47961098,2537.3,2536.6,0.78811]
[1751473724696,3.13120627,2537.3,2536.6,13.8295577]
[1751473724891,3.13120627,2537.3,2537.1,0.78793]
[1751473725086,3.13120627,2537.3,2537.2,3.55102]
[1751473725298,2.10397627,2537.4,2537.3,0.78789]
[1751473725594,5.47961098,2538.0,2537.9,0.78771]
[1751473725783,7.82801568,2538.4,2538.3,0.78758]
[1751473725987,7.82801568,2538.4,2538.3,8.8290277]
[1751473726185,10.17642039,2538.8,2538.6,0.78747]
[1751473726389,10.17642039,2538.8,2538.4,0.78753]
[1751473726689,42.107,2539.0,2538.1,2.7631]
[1751473726895,10.9272477,2538.9,2538.1,2.7631]
[1751473727297,0.78762,2538.2,2537.4,77.9654477]
[1751473727504,0.78762,2538.2,2537.5,2.7631]
[1751473727698,0.7876,2538.3,2537.5,2.7631]
[1751473727898,42.099,2538.4,2537.5,2.7631]
[1751473728091,0.78755,2538.5,2537.7,8.8291977]
[1751473728293,42.073,2538.8,2538.0,8.0414477]
[1751473728603,0.78754,2538.5,2538.1,2.8452]
[1751473729099,0.7876,2538.3,2538.1,2.8452]
[1751473729401,0.78757,2538.4,2538.1,2.8452]
[1751473729598,0.78761,2538.2,2538.1,2.8452]
[1751473730100,1.96865,2538.7,2538.1,2.8452]
[1751473730298,0.78761,2538.2,2538.1,2.8452]
[1751473731399,1.96829,2539.2,2538.3,0.78757]
[1751473731600,1.96832,2539.2,2538.5,8.0414477]
[1751473731802,56.785,2539.3,2538.4,0.78754]
[1751473732103,64.8264477,2539.3,2538.5,2.8377]
[1751473732306,1.96842,2539.0,2538.2,5.5465]
[1751473732500,15.8702,2538.9,2537.9,2.8377]
[1751473732701,42.03,2538.8,2538.3,0.78758]
[1751473732900,42.027,2538.8,2538.1,8.0414477]
[1751473733095,42.027,2538.8,2538.6,0.78748]
[1751473733300,42.027,2538.8,2538.7,2.8377]
[1751473733501,42.81443,2538.8,2538.4,0.78754]
[1751473733701,42.027,2538.8,2538.2,2.8377]
[1751473733895,0.78747,2538.7,2538.3,0.78758]
[1751473734101,42.027,2538.8,2538.2,2.8377]
[1751473734296,0.78759,2538.3,2537.9,0.78768]
[1751473734698,0.78759,2538.3,2537.6,2.8509]
[1751473734699,8.0414477,2538.3,2537.6,2.8509]
[1751473735000,55.135,2538.2,2537.6,0.78778]
[1751473735205,0.78769,2538.0,2537.6,0.78778]
[1751473735408,0.7877,2538.0,2537.6,0.78779]
[1751473735700,8.0414477,2538.6,2537.8,0.78772]
[1751473735905,95.928,2538.5,2538.0,0.78767]
[1751473736107,1.96916,2538.1,2536.8,1.9701]
[1751473736302,0.78776,2537.8,2537.4,0.78785]
[1751473736507,42.78077,2537.7,2537.4,0.78785]
[1751473736708,42.78077,2537.7,2537.3,0.78788]
[1751473736906,42.78078,2537.7,2537.0,2.8509]
[1751473737203,0.78781,2537.6,2537.0,2.8509]
[1751473737405,0.78772,2537.9,2537.1,1.96989]
[1751473737607,55.11,2537.8,2537.2,1.96982]
[1751473737911,0.78779,2537.7,2537.3,3.66187]
[1751473738108,0.78779,2537.7,2537.4,0.78786]
[1751473738411,0.7878,2537.6,2537.3,3.66187]
[1751473738605,0.78782,2537.6,2537.2,0.78791]
[1751473738806,0.78784,2537.5,2537.0,2.874]
[1751473739011,0.78782,2537.6,2537.2,0.78791]
[1751473739408,0.78782,2537.6,2537.1,0.78793]
[1751473739605,41.966,2537.5,2537.1,0.78796]
[1751473739803,41.966,2537.5,2537.2,3.66192]
[1751473740108,41.966,2537.5,2537.3,3.55368]
[1751473740305,41.966,2537.5,2537.3,2.7658]
[1751473740507,42.75384,2537.5,2537.3,2.7658]
[1751473740713,8.0414477,2538.1,2537.3,2.7658]
[1751473740714,56.735,2538.3,2537.3,15.8072477]
[1751473741013,15.9854,2538.8,2538.3,0.78757]
[1751473741311,2.8574,2538.8,2538.0,1.9692]
[1751473741506,56.736,2539.2,2538.8,0.78742]
[1751473741817,56.736,2539.2,2538.4,10.0103377]
[1751473742006,56.736,2539.2,2539.0,0.78734]
[1751473742210,56.736,2539.2,2539.1,3.55313]
[1751473742614,98.683,2539.2,2539.1,3.55313]
[1751473743009,40.8,2540.2,2539.1,2.7658]
[1751473743216,41.939,2539.9,2539.1,2.7658]
[1751473743415,0.78711,2539.9,2539.1,4.73409]
[1751473743614,42.71911,2539.9,2539.6,0.78718]
[1751473743814,0.78711,2539.9,2539.1,2.7658]
[1751473744013,41.928,2540.1,2539.7,0.78714]
[1751473744211,41.928,2540.1,2539.3,8.0414477]
[1751473744212,0.78709,2539.9,2539.5,0.7872]
[1751473744515,42.71504,2540.1,2539.7,0.78713]
[1751473744710,42.71504,2540.1,2539.8,2.9459]
[1751473744711,0.78706,2540.0,2539.8,2.9459]
[1751473745011,41.928,2540.0,2539.6,8.0414477]
[1751473745216,41.928,2540.0,2539.4,2.9459]
[1751473745416,0.78719,2539.6,2539.2,0.12300529]
[1751473745612,41.928,2540.0,2539.3,0.12301068]
[1751473745613,0.7871,2539.9,2539.3,0.12301068]
[1751473745813,41.905,2539.9,2539.6,0.78716]
[1751473746008,41.905,2539.9,2539.4,3.06891068]
[1751473746009,41.905,2539.9,2539.4,2.9459]
[1751473746215,41.905,2539.9,2539.2,0.12300719]
[1751473746413,0.7872,2539.6,2539.2,0.78729]
[1751473746609,0.78723,2539.5,2539.0,0.78734]
[1751473746809,0.78725,2539.4,2539.1,3.06831673]
[1751473747112,0.78727,2539.3,2539.2,0.12301673]
[1751473747306,41.895,2539.4,2538.9,0.12301673]
[1751473747511,0.78731,2539.2,2539.0,0.12301673]
[1751473747820,0.78733,2539.1,2538.7,0.78744]
[1751473748020,0.78733,2539.2,2538.8,0.91043831]
[1751473748219,0.78733,2539.2,2538.9,0.12303042]
[1751473748417,0.78733,2539.2,2539.0,0.1230336]
[1751473748618,0.7873,2539.2,2538.6,2.9453]
[1751473748817,0.7873,2539.2,2538.7,0.12303201]
[1751473749017,0.78731,2539.2,2538.8,0.91044201]
[1751473749213,0.78731,2539.2,2538.9,0.12303201]
[1751473749420,0.78733,2539.1,2539.0,0.12303201]
[1751473750120,0.78742,2538.9,2538.6,2.9453]
[1751473750419,42.65443,2538.8,2538.7,0.12304326]
[1751473750613,44.5941,2538.8,2538.0,2.8767]
[1751473750821,0.78757,2538.4,2538.0,3.66436]
[1751473751022,0.78757,2538.4,2538.1,0.78764]
[1751473751220,44.5941,2538.8,2538.0,2.8767]
[1751473751420,44.5941,2538.8,2538.2,0.7876]
[1751473751622,44.5941,2538.8,2538.3,2.8767]
[1751473751819,0.78754,2538.5,2538.1,0.78763]
[1751473752121,0.78754,2538.5,2538.2,0.78761]
[1751473752320,0.78746,2538.8,2537.9,10.7840477]
[1751473752525,0.78744,2538.8,2538.2,8.0414477]
[1751473752721,0.78744,2538.8,2538.5,0.78752]
[1751473753022,1.96858,2538.8,2538.3,2.7426]
[1751473753223,0.78753,2538.5,2538.2,0.78761]
[1751473753418,0.78753,2538.5,2538.1,0.78764]
[1751473753614,0.78753,2538.5,2538.2,3.5302]
[1751473753920,0.78754,2538.5,2538.2,3.53021]
[1751473754127,2.7372,2538.7,2538.2,2.7426]
[1751473754420,43.80242,2539.0,2538.2,2.7426]
[1751473754614,1.96858,2538.8,2538.1,1.13127804]
[1751473754818,1.96873,2538.6,2537.9,1.13127804]
[1751473755116,0.78764,2538.2,2537.9,1.13127804]
[1751473755313,0.7876,2538.3,2537.9,1.13127804]
[1751473755519,0.7876,2538.3,2537.8,1.50919471]
[1751473755520,0.78756,2538.4,2538.0,1.13127804]
[1751473755720,0.78756,2538.4,2538.1,0.78763]
[1751473755921,58.39914,2538.5,2538.2,0.78761]
[1751473756325,54.872,2538.5,2538.1,1.13127804]
[1751473756524,54.872,2538.5,2538.2,2.9733]
[1751473756726,54.872,2538.5,2538.1,1.13127804]
[1751473756922,0.78756,2538.4,2538.1,1.91890804]
[1751473757121,0.78755,2538.4,2538.1,1.91889804]
[1751473757322,55.65954,2538.5,2538.2,0.78761]
[1751473757525,54.872,2538.5,2538.0,3.10044804]
[1751473757826,54.852,2538.5,2538.2,0.78761]
[1751473758024,0.78755,2538.4,2538.1,4.89219804]
[1751473758426,55.63954,2538.5,2538.2,0.78761]
[1751473758626,54.852,2538.5,2538.1,4.9424]
[1751473758926,54.852,2538.5,2538.1,2.9733]
[1751473759219,0.78756,2538.4,2538.1,0.78761]
[1751473759626,55.63954,2538.5,2538.2,0.78761]
[1751473760027,55.63954,2538.5,2538.0,1.13127804]
[1751473760226,55.63954,2538.5,2538.2,0.78761]
[1751473760527,54.852,2538.5,2538.1,3.90767804]
[1751473760928,0.78762,2538.2,2538.1,1.13127804]
[1751473761131,0.78765,2538.1,2538.0,1.13127804]
[1751473761426,50.27935,2538.1,2538.0,1.13127804]
[1751473762220,0.78768,2538.0,2537.9,1.13127804]
[1751473762422,3.50038,2538.0,2537.9,1.13127804]
[1751473763621,3.50038,2538.0,2537.6,2.26542454]
[1751473763622,7.7127,2538.0,2537.7,1.50706773]
[1751473763824,0.78774,2537.8,2537.7,1.50706773]
[1751473764523,8.49954,2537.8,2537.7,1.50706773]
[1751473764727,0.78786,2537.4,2537.3,3.02672418]
[1751473764931,41.752,2537.4,2537.3,3.02672418]
[1751473765132,42.53986,2537.4,2537.3,3.02672418]
[1751473765321,41.752,2537.4,2537.2,3.73842]
[1751473765527,42.53987,2537.4,2537.2,5.97219369]
[1751473765728,41.752,2537.4,2537.2,3.73842]
[1751473765923,41.752,2537.4,2537.3,2.8093]
[1751473766132,41.752,2537.4,2537.3,3.59719]
[1751473766427,0.78792,2537.2,2537.1,3.02169369]
[1751473766725,13.048,2537.3,2537.0,3.02169369]
[1751473766921,1.96959,2537.5,2536.7,3.78340523]
[1751473766922,41.737,2537.2,2537.1,3.02169369]
[1751473767122,41.737,2537.3,2537.0,3.02169369]
[1751473767321,0.78792,2537.2,2537.1,2.7132]
[1751473767521,0.78804,2536.9,2536.6,4.57150523]
[1751473767820,0.78803,2536.9,2536.7,6.49660523]
[1751473768023,0.78797,2537.1,2536.8,0.78804]
[1751473768226,0.78797,2537.1,2537.0,3.0255513]
[1751473768227,0.78795,2537.1,2537.0,3.0255513]
[1751473768431,0.78799,2537.0,2536.9,3.0255513]
[1751473768626,0.78799,2537.0,2536.8,5.7387513]
[1751473768834,0.78801,2537.0,2536.8,2.7132]
[1751473769326,0.78798,2537.1,2536.8,3.50125]
[1751473769735,0.78793,2537.2,2536.9,0.788]
[1751473769935,13.049,2537.6,2537.0,4.68312]
[1751473770136,0.78787,2537.4,2537.1,0.78794]
[1751473770335,0.78787,2537.4,2537.2,2.8183]
[1751473770633,42.50485,2537.5,2537.2,3.60622]
[1751473770829,2.771,2538.2,2537.2,2.8183]
[1751473771036,0.78779,2537.7,2537.4,0.78785]
[1751473771234,42.4948,2537.6,2537.4,0.78785]
[1751473771439,42.4948,2537.6,2537.3,3.60617]
[1751473771736,41.707,2537.6,2537.4,0.78786]
[1751473772035,42.4948,2537.6,2537.5,2.8183]
[1751473772837,0.7878,2537.6,2537.5,2.8183]
[1751473773136,42.4778,2537.6,2537.5,2.8183]
[1751473773336,42.4768,2537.6,2537.5,2.8183]
[1751473773738,41.687,2537.6,2537.5,3.60613]
[1751473773936,0.78775,2537.8,2537.5,2.8183]
[1751473774138,42.46777,2537.7,2537.5,3.60612]
[1751473774436,41.68,2537.7,2537.6,0.7878]
[1751473774634,41.676,2537.8,2537.6,0.78778]
[1751473774934,41.676,2537.8,2537.7,2.743]
[1751473775134,13.049,2537.9,2537.7,2.743]
[1751473775335,13.049,2537.9,2537.8,0.78774]
[1751473775536,2.7387,2538.3,2538.0,0.78767]
[1751473775738,41.666,2538.2,2538.1,2.743]
[1751473776144,12.967,2538.4,2538.1,2.743]
[1751473776342,0.78761,2538.2,2538.1,2.743]
[1751473777840,42.45361,2538.3,2538.1,2.743]
[1751473778035,12.967,2538.4,2538.2,0.78761]
[1751473778239,41.643,2538.3,2538.1,3.53064]
[1751473778442,41.643,2538.3,2538.1,2.743]
[1751473778646,42.43058,2538.3,2538.1,3.53064]
[1751473778843,42.43058,2538.3,2538.1,2.743]
[1751473779239,41.643,2538.3,2537.6,1.96945]
[1751473779444,0.78764,2538.2,2537.9,0.78768]
[1751473779745,42.43061,2538.3,2538.0,0.78767]
[1751473780242,12.967,2538.4,2538.2,0.78759]
[1751473780442,43.58996,2538.3,2537.7,0.78776]
[1751473780646,42.40861,2538.3,2538.0,0.78767]
[1751473780848,0.78754,2538.5,2538.2,0.7876]
[1751473781049,41.619,2538.4,2537.3,2.9349]
[1751473781349,8.0414477,2538.1,2537.4,1.96965]
[1751473781545,41.614,2538.0,2537.5,3.67021]
[1751473781743,0.78773,2537.9,2537.7,0.78777]
[1751473781944,0.78773,2537.9,2537.6,0.7878]
[1751473782145,0.78773,2537.9,2537.7,2.8824]
[1751473782446,0.78773,2537.9,2537.7,3.67017]
[1751473782646,42.4017,2538.0,2537.7,3.67017]
[1751473782946,0.7877,2537.9,2537.8,2.888]
[1751473783948,42.40168,2538.0,2537.8,2.888]
[1751473784349,41.614,2538.0,2537.8,3.67573]
[1751473784847,0.78763,2538.2,2537.9,0.7877]
[1751473785048,41.592,2538.1,2538.0,3.67567]
[1751473785440,41.592,2538.1,2538.0,2.888]
[1751473785649,41.592,2538.1,2538.0,3.67567]
[1751473785946,41.592,2538.1,2538.0,2.888]
[1751473786249,41.575,2538.1,2538.0,2.888]
[1751473786449,42.36264,2538.1,2537.8,0.78772]
[1751473786747,42.36267,2538.1,2537.8,0.78773]
[1751473787048,0.78767,2538.0,2537.8,0.78773]
[1751473787548,0.78772,2537.9,2537.7,3.77665]
[1751473787749,0.78772,2537.9,2537.7,2.9889]
[1751473787939,0.7877,2537.9,2537.8,2.9889]
[1751473788549,0.78769,2538.0,2537.8,3.77663]
[1751473788846,0.78757,2538.4,2537.9,1.96927]
[1751473789044,14.93368,2538.7,2538.0,3.64795]
[1751473789250,0.78761,2538.2,2538.0,3.64795]
[1751473789452,41.536,2538.5,2538.1,0.78764]
[1751473789750,0.78756,2538.4,2538.2,2.8603]
[1751473789951,56.715,2538.6,2538.2,2.8603]
[1751473790346,0.78755,2538.4,2538.2,2.8603]
[1751473790552,0.78758,2538.3,2538.2,2.8603]
[1751473791754,0.7875,2538.6,2538.3,0.78756]
[1751473791947,42.30552,2538.5,2538.4,3.0023]
[1751473793050,41.518,2538.5,2538.4,3.78985]
[1751473793250,0.78746,2538.8,2538.5,0.78751]
[1751473793452,41.496,2538.7,2538.6,3.0023]
[1751473793650,42.28346,2538.7,2538.6,3.0023]
[1751473794352,0.78752,2538.5,2538.3,0.78758]
[1751473794554,0.78749,2538.6,2538.4,3.0023]
[1751473795450,42.28348,2538.7,2538.4,3.78984]
[1751473795654,0.78749,2538.6,2538.4,3.0023]
[1751473795853,0.78749,2538.6,2538.4,3.78985]
[1751473796049,41.496,2538.7,2538.4,3.0023]
[1751473796050,0.78752,2538.5,2538.4,3.0023]
[1751473796255,51.5061377,2538.7,2538.1,2.9274]
[1751473796453,0.7876,2538.3,2538.1,6.58144]
[1751473796750,0.78755,2538.4,2538.2,2.8664]
[1751473796956,41.462,2538.3,2538.2,2.8664]
[1751473797450,41.462,2538.3,2538.2,3.65401]
[1751473797657,2.9977,2538.9,2538.5,0.7875]
[1751473797951,12.964,2539.0,2538.6,2.7871]
[1751473798157,0.78746,2538.7,2538.6,2.7871]
[1751473798358,0.78745,2538.8,2538.6,3.57459]
[1751473798658,0.78745,2538.8,2538.7,0.78746]
[1751473798856,0.78743,2538.8,2538.6,3.57457]
[1751473799352,0.78745,2538.8,2538.5,0.78749]
[1751473799658,12.964,2539.0,2538.9,0.78739]
[1751473799851,2.9478,2539.3,2539.1,0.78733]
[1751473800049,69.691,2539.5,2538.9,0.78738]
[1751473800249,0.78735,2539.1,2538.9,0.78738]
[1751473800454,0.78729,2539.3,2539.1,0.78733]
[1751473800750,56.728,2539.5,2539.2,0.78728]
[1751473800955,56.728,2539.5,2538.7,2.8564]
[1751473800956,0.78733,2539.2,2538.7,2.8564]
[1751473801156,0.78738,2539.0,2538.8,0.78742]
[1751473801354,4.29122949,2540.0,2538.7,2.8564]
[1751473801554,5.9252,2540.1,2538.9,8.0414477]
[1751473801754,0.78729,2539.3,2538.8,5.03724772]
[1751473801954,41.407,2539.2,2539.1,0.7873]
[1751473802261,2.9288,2540.1,2539.6,0.78715]
[1751473802460,2.9288,2540.1,2539.6,0.78716]
[1751473802758,0.78713,2539.8,2539.6,0.78716]
[1751473802960,41.402,2540.0,2539.1,10.0097477]
[1751473803157,41.402,2540.0,2539.1,9.55494053]
[1751473803354,12.962,2540.2,2539.1,8.0414477]
[1751473803559,12.962,2540.7,2539.7,8.0414477]
[1751473803761,0.78704,2540.1,2539.8,5.6697]
[1751473803961,0.78704,2540.1,2539.9,0.78706]
[1751473804657,43.34623,2540.6,2539.9,0.78708]
[1751473804864,0.78704,2540.1,2539.9,0.78706]
[1751473805062,0.78705,2540.0,2539.9,0.78706]
[1751473805256,0.78708,2539.9,2539.8,6.4568]
[1751473805462,0.78701,2540.2,2539.8,6.4568]
[1751473805660,0.78702,2540.1,2539.8,5.6697]
[1751473805859,0.7928854,2540.3,2539.9,0.78708]
[1751473806163,0.7928854,2540.3,2540.0,0.78705]
[1751473806360,0.7928854,2540.3,2539.8,5.6697]
[1751473806665,0.0059054,2540.3,2539.8,5.6697]
[1751473807061,0.78703,2540.1,2539.8,6.4568]
[1751473807361,0.787,2540.2,2539.8,5.6697]
[1751473807662,0.0059054,2540.3,2540.0,0.78703]
[1751473807663,0.7928754,2540.3,2540.0,0.78703]
[1751473807861,0.0059054,2540.3,2540.2,0.78699]
[1751473808261,0.78685,2540.7,2540.5,0.78687]
[1751473808468,0.78681,2540.8,2540.7,0.78683]
[1751473808767,43.29487,2541.0,2540.1,1.96755]
[1751473808962,0.78685,2540.7,2540.2,1.96749]
[1751473809162,0.78685,2540.7,2540.5,0.78688]
[1751473809369,0.78685,2540.7,2540.6,0.78687]
[1751473809557,0.78683,2540.8,2540.6,0.78686]
[1751473809867,0.78686,2540.7,2540.5,0.78688]
[1751473810068,0.78683,2540.8,2540.6,0.78687]
[1751473810262,41.328,2541.0,2540.5,0.78689]
[1751473810564,0.78685,2540.7,2540.6,0.78687]
[1751473810864,0.78683,2540.8,2540.7,0.78684]
[1751473811068,0.78679,2540.9,2540.4,1.96733]
[1751473811267,0.78676,2541.0,2540.5,1.96726]
[1751473811457,1.9666,2541.4,2540.5,1.96726]
[1751473811458,1.96659,2541.4,2540.9,0.78676]
[1751473811662,41.302,2541.3,2540.9,0.78677]
[1751473811957,0.78667,2541.3,2540.6,15.7551777]
[1751473812162,12.863,2541.5,2541.1,0.7867]
[1751473812363,0.78665,2541.3,2541.2,2.7299]
[1751473812965,0.7867,2541.2,2541.0,0.7926354]
[1751473813162,0.38509355,2541.7,2541.0,0.0059054]
[1751473813364,0.78654,2541.7,2541.0,10.0141931]
[1751473813565,0.78654,2541.7,2541.5,0.78657]
[1751473813760,0.78671,2541.1,2541.0,0.0059054]
[1751473814570,0.78659,2541.5,2541.0,0.0059054]
[1751473814768,1.96629,2541.8,2541.0,0.0059054]
[1751473814969,41.255,2541.7,2541.0,8.0473531]
[1751473815165,41.255,2541.7,2541.1,2.8055]
[1751473815370,0.78666,2541.3,2541.1,2.8055]
[1751473815671,0.78666,2541.3,2541.1,3.59221]
[1751473815972,41.248,2541.5,2541.3,0.78664]
[1751473816172,2.9623,2542.0,2541.2,2.7943]
[1751473816369,0.78657,2541.6,2541.3,0.78663]
[1751473816672,0.78657,2541.6,2541.4,2.7943]
[1751473816864,1.96656,2541.4,2539.6,1.51349283]
[1751473817068,8.0414477,2540.5,2539.4,1.96809]
[1751473817266,54.097,2540.4,2539.5,2.7943]
[1751473817566,0.78703,2540.1,2539.6,0.78717]
[1751473817771,0.78703,2540.1,2539.5,2.7943]
[1751473817772,0.78705,2540.0,2539.7,2.7943]
[1751473818170,41.234,2540.2,2539.7,2.7943]
[1751473818573,0.78704,2540.1,2539.7,2.7943]
[1751473818776,2.765,2540.4,2539.7,2.7943]
[1751473818976,3.65631,2540.5,2540.0,0.78703]
[1751473819168,2.6114,2540.9,2540.3,0.78694]